bitfinex/quotes_ETHUSD_20260312
["timestamp","ask_amount","ask_price","bid_price","bid_amount"]
[1773311558988,0.002,2065.3,2064.9,3.19958036]
[1773311560551,0.002,2065.7,2065.2,1.98791098]
[1773311560788,0.002,2065.7,2065.4,1.98791098]
[1773311563054,0.002,2065.7,2065.5,1.21036068]
[1773311564175,0.002,2065.9,2065.6,2.18001038]
[1773311564364,0.003,2066.3,2065.9,2.18001038]
[1773311564797,0.003,2066.3,2065.5,1.21036068]
[1773311564798,1.21291759,2066.3,2065.6,2.18001038]
[1773311564993,1.21291759,2066.3,2065.7,1.2102435]
[1773311565203,0.003,2066.3,2065.7,3.39025388]
[1773311565502,0.003,2066.3,2065.8,2.18001038]
[1773311565668,1.21293954,2066.3,2065.8,2.18001038]
[1773311565867,3.70638018,2066.2,2065.6,3.39028084]
[1773311566085,0.35058373,2066.2,2065.7,2.18001038]
[1773311567581,0.35058373,2066.2,2065.8,1.21018491]
[1773311567902,2.49642846,2066.2,2065.8,1.21018491]
[1773311570304,3.70638802,2066.2,2065.8,1.21018491]
[1773311570505,3.82283216,2066.2,2065.7,3.39020851]
[1773311570995,3.82283216,2066.2,2065.6,1.21026998]
[1773311570996,2.26228887,2066.1,2065.6,1.21026998]
[1773311571503,2.26228887,2066.1,2065.3,6.95734163]
[1773311571708,2.26228887,2066.1,2065.4,2.11558164]
[1773311572108,2.26228887,2066.1,2065.4,3.32594622]
[1773311572109,3.47235663,2066.0,2065.4,3.32594622]
[1773311572403,2.26228887,2065.9,2065.0,1.62927177]
[1773311572604,4.49928887,2065.8,2065.2,2.11558164]
[1773311572785,4.49928887,2065.8,2065.3,2.13711829]
[1773311573105,4.49928887,2065.8,2065.6,0.001]
[1773311573606,2.238,2065.9,2065.6,2.11658164]
[1773311574193,2.238,2065.9,2065.6,3.3268283]
[1773311574707,1.21209848,2066.0,2065.6,2.11658164]
[1773311574913,3.45109848,2066.0,2065.6,3.32688302]
[1773311575123,2.26228887,2065.9,2065.6,0.001]
[1773311576724,2.241,2066.0,2065.6,2.11658164]
[1773311577387,3.45107065,2066.0,2065.6,2.11658164]
[1773311578085,5.71335952,2066.0,2065.6,0.001]
[1773311578282,5.71335952,2066.0,2065.4,0.001]
[1773311578283,2.26228887,2065.9,2065.4,0.001]
[1773311578797,2.26228887,2065.7,2065.4,0.001]
[1773311579228,3.47246303,2065.9,2065.4,0.001]
[1773311579538,3.47246303,2065.9,2065.4,2.11658164]
[1773311580818,3.47246303,2065.9,2065.4,3.32696986]
[1773311582011,3.47242034,2065.9,2065.4,3.32696986]
[1773311582328,0.002,2066.0,2065.5,2.11558164]
[1773311582533,0.002,2066.0,2065.7,2.11558164]
[1773311582996,0.002,2066.0,2065.8,3.32576655]
[1773311584197,0.002,2066.0,2065.8,2.11558164]
[1773311584712,0.002,2066.0,2065.6,2.11558164]
[1773311584899,0.002,2066.0,2065.5,1.21036068]
[1773311584900,3.47436418,2066.0,2065.5,1.21036068]
[1773311585615,3.47436909,2066.0,2065.5,1.21036068]
[1773311585814,2.26228887,2065.9,2065.4,0.001]
[1773311586001,2.26228887,2065.9,2065.1,0.001]
[1773311586002,2.26228887,2065.7,2065.1,0.001]
[1773311586201,2.26228887,2065.5,2065.1,0.001]
[1773311587221,2.26228887,2065.3,2064.7,0.001]
[1773311587603,2.26228887,2065.1,2064.7,0.001]
[1773311587918,2.26228887,2064.9,2064.7,0.001]
[1773311589224,3.47301281,2064.9,2064.7,0.001]
[1773311589594,2.26228887,2064.9,2064.7,0.001]
[1773311589925,2.245,2065.0,2064.7,0.001]
[1773311590397,2.245,2065.0,2064.7,0.02426113]
[1773311590919,2.245,2065.0,2064.7,2.11658164]
[1773311591313,2.245,2065.0,2064.7,3.32738591]
[1773311592724,0.002,2065.8,2064.9,2.11558164]
[1773311592899,0.002,2065.8,2065.2,2.11558164]
[1773311593220,0.002,2065.8,2065.3,2.14009403]
[1773311593422,0.002,2065.8,2065.4,1.21041928]
[1773311593723,1.21211372,2066.0,2065.5,2.11558164]
[1773311593724,0.002,2066.0,2065.5,2.11558164]
[1773311595628,0.002,2066.0,2065.6,3.32588373]
[1773311599142,0.002,2066.0,2065.7,2.11558164]
[1773311599818,0.26885034,2066.2,2065.9,2.11558164]
[1773311600235,1e-08,2066.2,2065.9,2.11558164]
[1773311600933,0.002,2066.0,2065.9,2.11558164]
[1773311601135,1e-08,2066.2,2065.9,2.36201831]
[1773311601744,1e-08,2066.2,2066.0,3.57208607]
[1773311601941,5.72299484,2066.7,2066.0,5.20011651]
[1773311602143,1.20964562,2066.8,2066.1,2.36201831]
[1773311602336,3.46260339,2066.8,2066.1,2.36201831]
[1773311602754,3.46260339,2066.8,2066.0,2.8380982]
[1773311602755,2.253,2066.8,2066.3,2.36201831]
[1773311603043,3.58913148,2066.9,2066.3,2.36201831]
[1773311603619,2.37957829,2066.8,2066.1,2.36201831]
[1773311603948,2.37957829,2066.6,2065.8,1.21118327]
[1773311605850,2.37957829,2066.4,2065.8,1.21118327]
[1773311606019,4.63457829,2066.4,2065.8,1.21118327]
[1773311606215,4.63457829,2066.4,2065.8,0.001]
[1773311606415,2.37957829,2066.3,2065.8,0.001]
[1773311607751,2.255,2066.4,2065.8,0.001]
[1773311608046,1.20989207,2066.3,2065.8,2.36301831]
[1773311608953,3.46487955,2066.4,2065.8,2.36301831]
[1773311609854,3.46694419,2066.3,2065.8,3.57317701]
[1773311610726,2.37957829,2066.7,2065.8,3.57317701]
[1773311610926,2.37957829,2066.5,2065.8,3.57317701]
[1773311611340,2.37957829,2066.5,2065.8,0.001]
[1773311611826,2.37957829,2066.1,2065.8,0.001]
[1773311612252,2.258,2066.0,2065.8,0.001]
[1773311614021,2.26,2066.0,2065.8,0.001]
[1773311615030,0.002,2066.0,2065.8,0.001]
[1773311615466,0.002,2066.2,2065.8,2.36301831]
[1773311615636,3.58915043,2066.9,2066.1,1.62803044]
[1773311615955,2.72951421,2067.1,2066.5,5.19982373]
[1773311616257,2.72951421,2067.1,2066.6,2.36201831]
[1773311616619,0.34993592,2067.1,2066.6,2.36201831]
[1773311616823,1.55936571,2067.1,2066.6,2.36201831]
[1773311617425,2.37957829,2067.0,2066.3,2.36201831]
[1773311617758,2.37957829,2067.0,2066.3,3.57189534]
[1773311618062,2.26,2067.0,2066.6,1.20971644]
[1773311618359,2.26,2067.0,2066.6,3.57173475]
[1773311618958,0.34993592,2067.1,2066.7,2.36201831]
[1773311619128,2.61093592,2067.1,2066.7,2.36201831]
[1773311619843,3.82039708,2067.1,2066.5,5.1997922]
[1773311620830,3.82039708,2067.1,2066.5,2.83777389]
[1773311621154,2.61093592,2067.1,2066.6,2.36201831]
[1773311621339,3.82036041,2067.1,2066.6,2.36201831]
[1773311621746,3.82038632,2067.1,2066.6,2.36201831]
[1773311622361,6.19996461,2067.1,2066.6,2.36201831]
[1773311622660,6.19996461,2067.1,2066.6,3.57171665]
[1773311622827,2.61093592,2067.1,2066.6,3.57171665]
[1773311623029,1.55936661,2067.1,2066.6,3.57171665]
[1773311623236,3.82236661,2067.1,2066.6,3.57171665]
[1773311624161,3.82236661,2067.1,2066.6,2.36201831]
[1773311624365,6.15073034,2067.1,2066.6,2.36201831]
[1773311624565,2.32836373,2067.0,2066.5,2.83778973]
[1773311624734,2.32836373,2067.0,2066.5,2.83780177]
[1773311624935,2.32836373,2067.0,2066.5,2.83780354]
[1773311625568,3.82236661,2067.1,2066.5,5.0599279]
[1773311625877,3.82236661,2067.1,2066.6,2.22212436]
[1773311626047,2.61293592,2067.1,2066.6,2.22212436]
[1773311626236,3.8223895,2067.1,2066.6,2.22212436]
[1773311626436,2.61293592,2067.1,2066.6,2.22212436]
[1773311626636,3.82236345,2067.1,2066.6,3.43183242]
[1773311627034,0.002,2066.9,2066.6,3.43183242]
[1773311627884,0.002,2066.9,2066.6,2.22212436]
[1773311628055,0.002,2066.9,2066.5,2.83780241]
[1773311628255,0.002,2066.9,2066.5,5.05992677]
[1773311628563,0.002,2066.9,2066.5,5.05991687]
[1773311629556,0.002,2066.9,2066.6,2.22212436]
[1773311629865,2.267,2067.0,2066.6,2.22212436]
[1773311630248,0.35193592,2067.1,2066.6,2.22212436]
[1773311630566,2.61893592,2067.1,2066.8,2.29856968]
[1773311630741,5.80468088,2067.3,2066.9,1.62803044]
[1773311630940,1.21129103,2067.4,2066.8,2.29856968]
[1773311631171,2.267,2067.3,2066.8,2.29856968]
[1773311632248,4.612661,2067.3,2066.8,2.29856968]
[1773311632445,2.345661,2067.2,2066.6,3.50825707]
[1773311632776,2.345661,2067.2,2066.4,3.50838937]
[1773311632777,2.345661,2067.0,2066.4,3.50838937]
[1773311633153,2.345661,2067.0,2066.1,1.21000517]
[1773311633549,2.345661,2066.8,2066.0,3.50960862]
[1773311633968,2.345661,2066.6,2066.0,3.50960862]
[1773311634359,2.345661,2066.6,2066.0,0.001]
[1773311634756,1.20977498,2066.5,2066.0,0.001]
[1773311634957,2.269,2066.7,2066.3,1.62803044]
[1773311635275,2.269,2066.7,2066.2,2.29856968]
[1773311636063,4.614661,2066.7,2066.0,2.29956968]
[1773311636271,2.345661,2066.6,2066.0,0.001]
[1773311636889,1.20977498,2066.5,2066.0,0.001]
[1773311637050,3.55543598,2066.5,2066.0,0.001]
[1773311637483,1.20972904,2066.6,2066.0,2.29956968]
[1773311638780,3.5553451,2066.7,2066.0,2.29956968]
[1773311638972,5.8253451,2066.7,2066.1,5.13660931]
[1773311639685,5.8253451,2066.7,2066.1,2.29856968]
[1773311639998,2.345661,2066.6,2066.0,0.001]
[1773311640286,2.345661,2066.6,2066.4,0.001]
[1773311640885,2.27,2067.0,2066.5,3.92660012]
[1773311641183,2.27,2067.0,2066.6,2.3300601]
[1773311641184,0.002,2066.9,2066.6,2.3300601]
[1773311641352,0.002,2066.9,2066.6,0.03149042]
[1773311641553,2.347661,2066.9,2066.4,0.001]
[1773311641778,2.347661,2066.9,2066.1,1.2110027]
[1773311641981,2.347661,2066.9,2066.1,0.001]
[1773311642756,2.347661,2066.9,2066.2,2.29856968]
[1773311642958,3.48156442,2066.9,2066.4,2.29856968]
[1773311643174,1.21156442,2066.9,2066.4,2.29856968]
[1773311643378,0.002,2066.9,2066.5,2.29856968]
[1773311643662,1.21141062,2067.2,2066.6,3.92660012]
[1773311644480,3.48030527,2067.4,2066.9,2.29856968]
[1773311644680,2.271,2067.4,2066.9,2.29856968]
[1773311644888,3.48025522,2067.4,2066.9,3.50807496]
[1773311645188,5.82591622,2067.4,2066.6,3.50825138]
[1773311645385,2.345661,2067.3,2066.6,3.50825138]
[1773311647096,1.20936532,2067.2,2066.6,3.50825138]
[1773311647596,1.20936532,2067.2,2066.7,2.29856968]
[1773311648206,1.20936532,2067.2,2066.7,1.72546968]
[1773311648890,1.20936532,2067.2,2066.6,2.8356383]
[1773311649793,1.20936532,2067.2,2066.6,1.62592826]
[1773311649993,3.55502632,2067.2,2066.6,3.92449794]
[1773311650196,5.82702632,2067.2,2066.6,3.92449794]
[1773311650436,5.82702632,2067.2,2066.7,3.89]
[1773311652902,5.82702632,2067.2,2066.6,2.29856968]
[1773311653197,5.82702632,2067.2,2066.6,3.50827959]
[1773311653403,5.82702632,2067.2,2066.7,2.29856968]
[1773311654876,0.002,2067.0,2066.8,2.29856968]
[1773311657006,0.002,2067.0,2066.7,0.02113864]
[1773311657506,0.002,2067.0,2066.7,2.31970832]
[1773311657709,0.002,2067.0,2066.7,3.52934199]
[1773311658076,0.002,2067.0,2066.7,2.31970832]
[1773311658404,0.002,2067.0,2066.6,1.2106715]
[1773311659208,0.002,2067.2,2066.8,2.29856968]
[1773311659398,2.345661,2067.1,2066.6,0.001]
[1773311659778,2.345661,2067.1,2066.4,0.001]
[1773311661310,2.31628401,2066.9,2066.4,0.001]
[1773311661510,4.58828401,2066.8,2066.4,0.001]
[1773311661710,2.272,2066.8,2066.4,0.001]
[1773311661913,2.31628401,2066.7,2066.4,0.001]
[1773311663610,3.48163908,2066.8,2066.4,0.001]
[1773311664719,5.79792309,2066.8,2066.4,0.001]
[1773311665447,2.272,2066.8,2066.4,1.21083352]
[1773311665615,3.48160089,2066.8,2066.4,0.001]
[1773311666114,2.31628401,2066.7,2066.1,1.21100307]
[1773311666895,2.31628401,2066.7,2066.1,0.001]
[1773311668101,2.31628401,2066.5,2066.1,0.001]
[1773311669333,3.52600045,2066.6,2066.1,2.39267315]
[1773311669512,2.272,2066.5,2066.1,2.39267315]
[1773311669834,2.272,2066.7,2066.4,0.001]
[1773311670031,1.20971644,2066.6,2066.4,0.001]
[1773311670622,3.52600045,2066.6,2066.4,0.001]
[1773311670810,2.31628401,2066.5,2066.4,0.001]
[1773311671009,2.31628401,2066.5,2066.1,0.001]
[1773311672051,1.20983352,2066.4,2066.1,0.001]
[1773311673419,2.31628401,2066.5,2066.1,0.001]
[1773311673623,1.20974768,2066.6,2066.1,2.39267315]
[1773311674005,5.79794814,2066.7,2066.2,3.60162378]
[1773311674205,5.79794577,2066.7,2066.2,3.60162378]
[1773311674623,5.79794823,2066.7,2066.2,3.60162378]
[1773311675470,3.52594823,2066.7,2066.2,3.60162378]
[1773311675609,2.271,2066.6,2066.2,3.60162378]
[1773311675809,2.271,2066.6,2066.2,2.39167315]
[1773311676239,2.271,2066.6,2066.2,3.60159707]
[1773311676748,3.4807183,2066.6,2066.2,3.60159707]
[1773311676948,3.4807183,2066.6,2066.2,3.60160644]
[1773311677639,2.31628401,2066.5,2066.1,0.001]
[1773311677846,2.31628401,2066.5,2066.1,1.21099614]
[1773311678151,2.31628401,2066.5,2066.1,0.001]
[1773311679378,0.002,2067.0,2066.6,2.39167315]
[1773311680628,0.002,2067.0,2066.7,1.2096579]
[1773311682264,2.31828401,2067.0,2066.4,2.39167315]
[1773311682454,2.31828401,2067.0,2066.5,2.39167315]
[1773311682765,0.002,2067.0,2066.7,2.39167315]
[1773311683445,0.002,2066.8,2066.7,2.39167315]
[1773311683754,0.002,2067.0,2066.7,2.39167315]
[1773311684762,0.002,2067.0,2066.7,2.24795093]
[1773311686840,0.002,2067.0,2066.7,3.45756712]
[1773311687560,0.002,2067.0,2066.8,2.24795093]
[1773311689135,0.002,2067.0,2066.9,3.45749178]
[1773311689361,0.002,2067.2,2066.9,3.45749178]
[1773311689550,0.002,2067.2,2066.9,5.08342004]
[1773311692774,0.003,2067.6,2067.2,2.23284259]
[1773311692965,0.003,2067.6,2067.4,2.23284259]
[1773311693378,0.033,2068.0,2067.6,2.23284259]
[1773311693578,0.033,2068.0,2067.7,2.23284259]
[1773311694773,2.37695555,2068.5,2067.8,2.23284259]
[1773311695672,2.37695555,2068.3,2067.8,2.23284259]
[1773311696247,2.37695555,2068.3,2067.8,3.44184222]
[1773311696448,2.37695555,2068.3,2067.8,2.23284259]
[1773311697075,2.37695555,2068.3,2067.8,3.44184867]
[1773311697377,2.37695555,2068.3,2067.8,2.23284259]
[1773311697577,2.37695555,2068.3,2067.7,1.20903953]
[1773311697871,1.20878058,2068.2,2067.7,3.44188212]
[1773311698080,1.20878058,2068.2,2067.8,2.23284259]
[1773311700578,3.58572349,2068.3,2067.8,3.44185237]
[1773311700783,2.261,2068.4,2067.9,2.23284259]
[1773311701075,2.261,2068.4,2067.8,1.20900978]
[1773311701076,2.261,2068.4,2068.1,2.23284259]
[1773311701456,1.20846688,2068.8,2068.3,2.23284259]
[1773311701848,2.37695555,2068.7,2068.0,2.23284259]
[1773311702179,2.37695555,2068.5,2067.6,3.44191623]
[1773311702860,2.37695555,2068.5,2067.4,3.44203796]
[1773311702861,2.37695555,2068.3,2067.4,3.44203796]
[1773311703061,3.19494649,2068.6,2067.4,3.44203796]
[1773311703062,2.37695555,2068.1,2067.4,3.44203796]
[1773311703468,2.37695555,2068.1,2067.4,2.23284259]
[1773311704476,2.37695555,2067.9,2067.4,3.44207875]
[1773311704680,2.37695555,2067.9,2067.4,2.23284259]
[1773311704851,2.37695555,2067.9,2067.2,3.44218998]
[1773311705489,2.37695555,2067.9,2067.0,2.23384259]
[1773311705679,2.37695555,2067.7,2067.1,0.02963059]
[1773311705884,2.37695555,2067.7,2067.0,0.03063059]
[1773311706285,2.37695555,2067.5,2067.0,0.001]
[1773311706484,2.37695555,2067.4,2067.0,0.001]
[1773311706786,2.37695555,2067.4,2066.8,0.001]
[1773311707282,30.0,2067.3,2066.8,0.001]
[1773311707482,2.37695555,2067.2,2066.8,0.001]
[1773311708591,2.37695555,2067.0,2066.5,0.001]
[1773311708961,2.261,2066.9,2066.5,0.001]
[1773311709193,2.37695555,2066.8,2066.1,0.001]
[1773311709562,2.37695555,2067.7,2066.2,2.23284259]
[1773311709759,2.37695555,2067.5,2066.8,0.001]
[1773311710574,2.37695555,2067.3,2066.8,0.001]
[1773311712588,2.37695555,2067.3,2066.0,4.13819463]
[1773311712589,32.37695555,2066.7,2066.0,0.001]
[1773311712794,2.37695555,2066.6,2066.0,0.001]
[1773311713094,2.37695555,2066.6,2066.1,1.21099599]
[1773311713400,2.264,2066.7,2066.1,0.001]
[1773311714094,4.64095555,2066.7,2066.1,0.001]
[1773311715302,1.20971644,2066.6,2066.1,0.001]
[1773311715597,1.20962337,2066.8,2066.1,2.23384259]
[1773311715772,1.20962337,2066.8,2066.2,3.86003722]
[1773311717398,2.37695555,2066.8,2066.2,5.06998715]
[1773311718608,2.37695555,2066.8,2066.2,3.44279252]
[1773311718824,3.47450055,2067.0,2066.3,2.23284259]
[1773311719122,1.20950055,2067.0,2066.3,2.23284259]
[1773311719277,1.20950055,2067.0,2066.3,3.4427067]
[1773311719818,7.2147813,2067.1,2066.5,2.23284259]
[1773311719819,2.37695555,2067.1,2066.5,2.23284259]
[1773311719978,3.58638612,2067.1,2066.5,2.23284259]
[1773311720974,1.20939606,2067.2,2066.5,2.23284259]
[1773311721303,1.20939606,2067.2,2066.6,1.20971644]
[1773311721473,1.20939606,2067.2,2066.6,3.61818481]
[1773311721878,5.87204849,2067.3,2066.7,2.40846837]
[1773311723305,0.002,2066.8,2066.7,2.40846837]
[1773311724400,0.002,2066.8,2066.6,1.20967001]
[1773311724811,0.002,2067.1,2066.7,2.40846837]
[1773311725309,2.39870286,2067.1,2066.5,3.61819972]
[1773311725484,1.20948234,2067.0,2066.5,3.61824013]
[1773311725684,3.60817336,2067.1,2066.5,3.61824013]
[1773311726406,3.60817336,2067.1,2066.5,2.40846837]
[1773311726812,3.60817336,2067.1,2066.5,3.61823813]
[1773311727015,3.60817336,2067.1,2066.5,2.40846837]
[1773311727593,2.39670286,2067.0,2066.5,2.40846837]
[1773311728103,2.39670286,2067.0,2066.4,1.2108076]
[1773311728303,2.39670286,2067.0,2066.4,1.21082448]
[1773311728699,2.39670286,2067.0,2066.4,0.001]
[1773311729513,1.20954085,2066.9,2066.4,0.001]
[1773311730189,3.60624371,2066.9,2066.4,0.001]
[1773311733614,1.20954085,2066.9,2066.4,2.40946837]
[1773311733818,0.002,2067.1,2066.9,2.40846837]
[1773311734021,1.20928659,2067.4,2066.9,2.40846837]
[1773311734193,9.49665746,2067.5,2066.9,2.40846837]
[1773311734194,5.86893106,2067.5,2066.9,3.61795663]
[1773311734395,0.002,2067.9,2067.4,4.035663]
[1773311734622,0.002,2067.9,2067.5,2.40846837]
[1773311735624,0.002,2068.1,2067.7,2.40846837]
[1773311736121,1.08455866,2068.2,2067.9,2.40846837]
[1773311736325,1.08455866,2068.2,2067.9,3.61738872]
[1773311736503,5.86828905,2068.6,2067.9,3.61738872]
[1773311736698,5.86828905,2068.6,2067.9,1.20892035]
[1773311736927,1.45108343,2068.9,2068.3,2.40846837]
[1773311737422,1.45108343,2068.9,2068.0,2.40846837]
[1773311737423,29.182566,2068.8,2068.0,2.40846837]
[1773311737721,2.39670286,2068.7,2068.0,2.40846837]
[1773311738794,1.20854684,2068.6,2068.0,3.61735408]
[1773311739236,2.39670286,2068.5,2067.7,2.40846837]
[1773311739406,2.39670286,2068.5,2067.7,3.6175318]
[1773311740131,2.39670286,2068.5,2067.7,3.61754113]
[1773311740633,1.20854684,2068.6,2067.8,2.40846837]
[1773311741007,4.83418737,2068.7,2067.9,2.40846837]
[1773311741239,7.23089023,2068.7,2067.9,2.40846837]
[1773311741934,2.39670286,2068.6,2067.9,2.40846837]
[1773311743019,1.20860526,2068.5,2067.9,2.40846837]
[1773311744024,1.20860526,2068.5,2067.9,3.61742278]
[1773311744225,1.20860526,2068.5,2067.9,2.40846837]
[1773311745227,2.3171203,2068.5,2067.9,2.40846837]
[1773311745822,2.3171203,2068.5,2067.7,2.44243522]
[1773311746028,2.3171203,2068.3,2067.7,2.44243522]
[1773311746235,2.3171203,2068.3,2067.4,4.8368657]
[1773311746236,2.3171203,2068.3,2067.5,2.44243522]
[1773311746417,2.3171203,2068.3,2067.5,3.65162294]
[1773311746812,2.3171203,2068.3,2067.5,2.44243522]
[1773311747018,2.3171203,2067.9,2067.0,1.20948234]
[1773311747541,2.3171203,2067.7,2067.0,1.20948234]
[1773311748238,2.3171203,2067.7,2067.0,3.65191756]
[1773311749435,1.20913136,2067.6,2067.0,3.65191756]
[1773311749822,0.002,2067.5,2067.0,3.65191756]
[1773311750553,0.002,2067.7,2067.2,2.22820529]
[1773311750704,0.002,2067.7,2067.4,2.22820529]
[1773311751840,0.002,2068.0,2067.6,2.22820529]
[1773311753916,0.002,2068.0,2067.7,1.20907288]
[1773311754127,0.002,2068.0,2067.8,2.22820529]
[1773311754312,3.50013727,2068.5,2067.8,2.22820529]
[1773311754516,1.20864993,2068.5,2067.8,2.22820529]
[1773311754837,7.12549041,2068.7,2067.8,2.22820529]
[1773311755424,2.29148463,2068.7,2067.8,2.22820529]
[1773311756124,1.20854684,2068.6,2068.0,2.22820529]
[1773311756617,3.5000079,2068.7,2068.0,2.22820529]
[1773311758058,3.5000079,2068.7,2068.1,3.43704432]
[1773311758347,3.5000079,2068.7,2068.1,2.22820529]
[1773311760571,2.29148463,2068.6,2068.1,2.22820529]
[1773311760770,2.29148463,2068.6,2067.9,3.43711414]
[1773311760953,2.29148463,2068.6,2068.0,2.22820529]
[1773311761265,1.20852327,2068.7,2068.0,2.22820529]
[1773311762156,1.20852327,2068.7,2068.1,2.22820529]
[1773311762666,3.5000079,2068.7,2068.1,2.22820529]
[1773311763250,0.002,2068.5,2068.1,2.22820529]
[1773311764659,0.002,2068.5,2068.2,2.22820529]
[1773311766569,0.002,2068.5,2068.0,2.22820529]
[1773311767746,2.29348463,2068.5,2068.0,2.22820529]
[1773311768069,0.002,2068.5,2068.0,2.22820529]
[1773311768285,0.002,2068.5,2068.1,2.22820529]
[1773311768470,0.002,2068.5,2068.2,3.43698587]
[1773311768673,0.002,2068.7,2068.4,3.85539992]
[1773311768985,0.002,2068.7,2068.4,2.22820529]
[1773311769842,0.003,2069.1,2068.7,2.22820529]
[1773311770069,1.21126504,2069.1,2068.7,2.22820529]
[1773311770276,1.21126504,2069.1,2068.4,2.22820529]
[1773311770473,3.50274967,2069.1,2068.4,2.22820529]
[1773311770647,0.003,2069.1,2068.6,2.22820529]
[1773311772692,3.45432148,2069.3,2068.7,2.22820529]
[1773311772899,0.36344412,2069.5,2069.3,2.22820529]
[1773311773195,2.29148463,2070.1,2069.3,2.22820529]
[1773311773196,7.1225639,2070.0,2069.3,2.22820529]
[1773311773774,3.49921409,2070.0,2069.3,2.22820529]
[1773311773979,2.29148463,2070.4,2069.6,2.22820529]
[1773311774344,2.29148463,2070.2,2069.2,2.22820529]
[1773311774549,1.20767112,2070.1,2069.6,2.22820529]
[1773311776154,3.49915575,2070.1,2069.4,2.22820529]
[1773311776475,4.53548463,2070.0,2069.1,2.22820529]
[1773311776794,1.20778781,2069.9,2069.1,2.22820529]
[1773311776994,1.20778781,2069.9,2069.2,2.22820529]
[1773311777474,4.019,2070.3,2069.6,2.22820529]
[1773311777972,2.381434,2070.3,2069.6,2.22820529]
[1773311778176,0.002,2070.0,2069.6,2.22820529]
[1773311779113,0.002,2070.2,2069.6,2.22820529]
[1773311779114,0.002,2070.2,2069.8,2.22820529]
[1773311779254,0.002,2070.2,2069.9,2.22820529]
[1773311779453,0.002,2070.2,2069.7,2.22820529]
[1773311779949,0.002,2070.2,2069.8,2.22820529]
[1773311780389,1.20726289,2070.8,2070.2,2.28149318]
[1773311780546,2.1717276,2070.7,2069.8,2.28149318]
[1773311781586,3.3791071,2070.6,2069.9,2.28149318]
[1773311781887,2.1717276,2070.5,2069.9,2.28149318]
[1773311782105,2.1717276,2070.5,2069.6,2.28149318]
[1773311782405,2.1717276,2070.5,2069.6,3.48945155]
[1773311782907,2.1717276,2070.5,2069.6,2.28149318]
[1773311783209,2.1717276,2070.5,2069.6,3.48945012]
[1773311784002,3.37922373,2070.4,2069.6,3.48945012]
[1773311784908,2.1717276,2070.3,2069.4,2.28149318]
[1773311785065,2.1717276,2070.1,2069.4,2.28149318]
[1773311785266,2.1717276,2070.1,2069.0,8.93733176]
[1773311785267,2.1717276,2069.9,2069.1,2.28149318]
[1773311785466,2.1717276,2069.8,2069.1,2.28149318]
[1773311785998,1.20790452,2069.7,2069.1,3.48974117]
[1773311786167,1.20790452,2069.7,2069.2,2.28149318]
[1773311786495,2.1717276,2069.6,2068.9,2.28149318]
[1773311786873,2.1717276,2069.6,2068.7,2.28149318]
[1773311787675,4.4227276,2069.6,2068.7,2.28149318]
[1773311787994,1.20802126,2069.5,2068.8,2.83167655]
[1773311788300,1.20802126,2069.5,2068.9,2.28149318]
[1773311790605,1.20796668,2069.6,2069.0,2.28149318]
[1773311792902,1.20796668,2069.6,2069.1,0.001]
[1773311793405,3.37969428,2069.6,2069.1,0.001]
[1773311797198,2.1717276,2069.5,2069.1,0.001]
[1773311798808,3.46305368,2069.5,2069.1,0.001]
[1773311799284,3.46304323,2069.5,2069.1,0.001]
[1773311800278,5.63477083,2069.5,2069.1,0.001]
[1773311800692,2.1717276,2069.4,2069.1,0.001]
[1773311802777,3.37986561,2069.3,2068.9,0.001]
[1773311803012,2.1717276,2069.2,2068.9,0.001]
[1773311804883,1.20825479,2069.1,2068.9,0.001]
[1773311806989,2.28759869,2070.6,2069.2,2.10672977]
[1773311807189,2.28759869,2070.6,2069.7,2.10672977]
[1773311807391,4.54659869,2070.5,2069.7,2.10672977]
[1773311808210,1.20696019,2071.4,2070.4,2.10672977]
[1773311808414,3.49455888,2071.4,2070.4,2.10672977]
[1773311808713,4.54759869,2071.3,2070.4,2.10672977]
[1773311808919,1.20708802,2071.1,2070.5,1.20743781]
[1773311809228,1.20708802,2071.1,2070.5,3.31416758]
[1773311809413,3.46700362,2071.3,2070.5,2.10672977]
[1773311810228,32.47637707,2071.7,2070.5,2.10672977]
[1773311810422,2.261,2071.6,2070.5,2.10672977]
[1773311810610,3.88424655,2071.6,2070.5,2.10672977]
[1773311810810,6.36062362,2071.6,2070.5,2.10672977]
[1773311811110,1.20685493,2071.5,2070.7,2.42208504]
[1773311811511,3.46785493,2071.5,2070.7,2.42208504]
[1773311811953,30.0,2071.7,2070.8,2.42208504]
[1773311812958,4.09962362,2071.2,2070.2,6.22133677]
[1773311813263,5.94546509,2071.1,2070.2,6.22133677]
[1773311813446,1.20708802,2071.1,2070.4,2.42208504]
[1773311815761,2.47637707,2070.9,2070.1,2.42208504]
[1773311816145,2.47637707,2070.7,2069.8,3.62990585]
[1773311816344,2.47637707,2070.7,2069.8,2.42208504]
[1773311816838,2.47637707,2070.7,2069.8,3.62992471]
[1773311817151,1.2073795,2070.6,2069.9,2.42208504]
[1773311817660,1.2073795,2070.6,2070.0,0.01864923]
[1773311817955,2.265,2070.8,2070.0,2.47039421]
[1773311818771,2.265,2070.8,2070.0,2.42208504]
[1773311819233,5.518147,2071.2,2070.2,2.42208504]
[1773311819444,7.30435548,2071.3,2070.2,2.42208504]
[1773311819646,2.265,2071.2,2070.2,2.42208504]
[1773311819845,7.30435548,2071.3,2070.2,2.42208504]
[1773311820049,7.30435548,2071.3,2070.4,2.42208504]
[1773311820381,2.266,2071.2,2070.4,2.42208504]
[1773311820540,7.30435548,2071.3,2070.4,2.42208504]
[1773311820737,3.68334853,2071.3,2070.4,2.42208504]
[1773311820942,1.20697146,2071.3,2070.4,2.42208504]
[1773311821464,4.82772671,2071.4,2070.5,1.20743781]
[1773311821659,4.82772671,2071.4,2070.6,2.42208504]
[1773311821660,1.20691319,2071.4,2070.6,2.42208504]
[1773311821864,3.4728965,2071.5,2070.6,2.42208504]
[1773311822263,0.002,2071.1,2070.6,2.42208504]
[1773311823645,0.002,2071.1,2070.8,2.42208504]
[1773311824570,1.2068965,2071.5,2070.8,2.42208504]
[1773311824940,9.79999004,2071.8,2070.8,2.42208504]
[1773311824941,1.20676473,2071.7,2070.8,2.42208504]
[1773311825943,1.20676473,2071.7,2070.9,1.20720459]
[1773311826145,7.12665107,2072.0,2071.0,2.42208504]
[1773311826345,2.47637707,2071.7,2070.7,2.42208504]
[1773311826584,2.47637707,2071.7,2070.7,3.62937083]